fUSD/lending_fUSD_20260107
["ID","MTS","AMOUNT","RATE_DAILY","PERIOD"]
[400772164,1767823847223,-1000.0,0.0001797,2]
[400772166,1767823847233,-1000.0,0.0001797,2]
[400772168,1767823847242,-1000.0,0.0001797,2]
[400772170,1767823847251,-1109.90852601,0.0001797,2]
[400772172,1767823847260,-500.0,0.0001797,2]
[400772174,1767823847270,-500.0,0.0001797,2]
[400772176,1767823847282,-500.0,0.0001797,2]
[400772178,1767823847295,-983.46328676,0.0001797,2]
[400772180,1767823847304,-713.41765365,0.0001797,2]
[400772182,1767823847315,-360.58533093,0.0001797,2]
[400772185,1767823847326,-1000.0,0.00017972,2]
[400772186,1767823847337,-500.0,0.00017973,2]
[400772188,1767823847348,-1000.0,0.00017973,2]
[400772191,1767823847358,-1000.0,0.0001798,2]
[400772192,1767823847367,-500.0,0.00017982,2]
[400772194,1767823847376,-210.0,0.00017987,2]
[400772196,1767823847385,-1455.64956121,0.0001799,2]
[400772198,1767823847394,-1455.64956121,0.0001799,2]
[400772200,1767823847403,-151.0,0.00017997,2]
[400772202,1767823847412,-44882.6610784,0.00017999,2]
[400772204,1767823847423,-666.0,0.00017999,2]
[400772206,1767823847433,-300.0,0.00017999,2]
[400772208,1767823847442,-300.0,0.00017999,2]
[400772210,1767823847451,-500.0,0.00017999,2]
[400772212,1767823847460,-500.0,0.00017999,2]
[400772214,1767823847470,-500.0,0.00017999,2]
[400772216,1767823847480,-500.0,0.00017999,2]
[400772218,1767823847489,-500.0,0.00017999,2]
[400772220,1767823847498,-174.14927633,0.00017999,2]
[400772222,1767823847508,-300.0,0.00017999,2]
[400772224,1767823847517,-666.0,0.00017999,2]
[400772226,1767823847525,-300.0,0.00017999,2]
[400772228,1767823847535,-300.0,0.00017999,2]
[400772230,1767823847544,-666.0,0.00017999,2]
[400772232,1767823847553,-300.0,0.00017999,2]
[400772234,1767823847562,-5826.21400436,0.00017999,2]
[400772236,1767823847573,-254833.68786273,0.00018,2]
[400772237,1767823847584,-3603.13674707,0.00018,2]
[400772240,1767823847593,-105356.88679345,0.00018,2]
[400772241,1767823847602,-5577550.32870783,0.00018,2]
[400772244,1767823847614,-20274.93599447,0.00018,2]
[400772251,1767823847672,-4125.73666421,0.00018,2]
[400772257,1767823847720,-267.5,0.00018,2]
[400772357,1767823848693,-2372341.13073696,0.00018,2]
[400772359,1767823848703,-772.32,0.00018,7]
[400772361,1767823848712,-1123.72081772,0.00018,2]
[400772363,1767823848721,-1707815.14688852,0.00018,2]
[400772439,1767823849574,-1.7e-07,0.00018,2]
[400772453,1767823849710,-154784.2415534,0.00018,2]
[400772456,1767823849722,-408.38499996,0.00018,2]
[400772460,1767823849754,-29244.60056734,0.00018,2]
[400772761,1767823853653,-482.82394651,0.00014196,2]
[400772762,1767823853663,-202.53434083,0.00014196,2]
[400772763,1767823853674,-587.39754749,0.00014196,2]
[400772764,1767823853684,-300.0,0.00017163,2]
[400772765,1767823853694,-300.0,0.00017302,2]
[400772766,1767823853703,-288.17388403,0.00017615,2]
[400772767,1767823853713,-2290.21483905,0.0001763,2]
[400772771,1767823853931,-4260.78516095,0.0001763,2]
[400772772,1767823853941,-300.0,0.00017765,2]
[400772773,1767823853951,-25894.1041261,0.00018,2]
[400772781,1767823894024,2345.758,0.00013913,2]
[400772782,1767823894070,189.733,0.00013913,2]
[400772784,1767823909361,7464.519,0.00014097,2]
[400772785,1767823909389,5083.42452321,0.00014097,2]
[400772786,1767823909479,700.20130916,0.00014097,2]
[400772799,1767823988337,236.5096,0.00014097,2]
[400772800,1767824007255,354.6377,0.00014022,2]
[400772801,1767824049126,3334.2467,0.00014097,2]
[400772802,1767824055029,290.99016763,0.00014097,2]
[400772803,1767824055054,10000.01,0.00014097,2]
[400772804,1767824055079,10000.01,0.00014097,2]
[400772805,1767824055105,10000.01,0.00014097,2]
[400772806,1767824055130,10000.01,0.00014097,2]
[400772807,1767824055154,9841.62173237,0.00014097,2]
[400772825,1767824140662,-272.32645231,0.00014196,2]
[400772826,1767824140694,-411.17828324,0.00014196,2]
[400772827,1767824140731,-500.0,0.00014196,2]
[400772828,1767824140768,-500.0,0.00014196,2]
[400772829,1767824140806,-500.0,0.00014196,2]
[400772830,1767824140844,-500.0,0.00014196,2]
[400772831,1767824140881,-500.0,0.00014196,2]
[400772832,1767824140920,-500.0,0.00014196,2]
[400772833,1767824140956,-500.0,0.00014196,2]
[400772834,1767824141361,-500.0,0.00014196,2]
[400772835,1767824141399,-133.0005289,0.00014196,2]
[400772836,1767824141591,-366.9994711,0.00014196,2]
[400772837,1767824141628,-500.0,0.00014196,2]
[400772838,1767824141668,-500.0,0.00014196,2]
[400772839,1767824141705,-500.0,0.00014196,2]
[400772840,1767824141742,-500.0,0.00014196,2]
[400772841,1767824141777,-500.0,0.00014196,2]
[400772842,1767824141812,-500.0,0.00014196,2]
[400772843,1767824141847,-500.0,0.00014196,2]
[400772844,1767824141882,-500.0,0.00014196,2]
[400772845,1767824141918,-500.0,0.00014196,2]
[400772846,1767824142162,-500.0,0.00014196,2]
[400772847,1767824142198,-500.0,0.00014196,2]
[400772848,1767824142234,-500.0,0.00014196,2]
[400772849,1767824142270,-500.0,0.00014196,2]
[400772850,1767824142306,-475.12103079,0.00014196,2]
[400772851,1767824142343,-500.0,0.00014196,2]
[400772852,1767824142378,-500.0,0.00014196,2]
[400772853,1767824142414,-500.0,0.00014196,2]
[400772854,1767824142451,-500.0,0.00014196,2]
[400772855,1767824142490,-500.0,0.00014196,2]
[400772857,1767824146191,-500.0,0.00014196,2]
[400772858,1767824146220,-500.0,0.00014196,2]
[400772859,1767824146252,-46.10582028,0.00014196,2]
[400772860,1767824146864,-453.89417972,0.00014196,2]
[400772861,1767824146901,-500.0,0.00014196,2]
[400772862,1767824146941,-500.0,0.00014196,2]
[400772863,1767824146979,-500.0,0.00014196,2]
[400772864,1767824147014,-500.0,0.00014196,2]
[400772865,1767824147049,-500.0,0.00014196,2]
[400772866,1767824147081,-325.12738211,0.00014196,2]
[400772867,1767824147113,-500.0,0.00014196,2]
[400772868,1767824147145,-500.0,0.00014196,2]
[400772869,1767824147178,-500.0,0.00014196,2]
[400772870,1767824147320,-1200.0,0.00014196,2]
[400772871,1767824147352,-300.0,0.00014196,2]
[400772872,1767824147384,-150.0,0.00014196,2]
[400772873,1767824147416,-500.0,0.00014196,2]
[400772874,1767824147450,-195.0,0.00014196,2]
[400772875,1767824150204,797.0,7.299e-05,2]
[400772876,1767824150494,797.0,7.668e-05,2]
[400772877,1767824150646,797.0,8.037e-05,2]
[400772878,1767824150943,797.0,8.406e-05,2]
[400772879,1767824151124,797.0,8.775e-05,2]
[400772880,1767824151781,797.0,9.144e-05,2]
[400772881,1767824151939,453.81003599,9.513e-05,2]
[400772882,1767824151963,343.18996401,9.513e-05,2]
[400772883,1767824152268,797.0,9.882e-05,2]
[400772884,1767824152637,797.0,0.00010251,2]
[400772885,1767824152967,797.0,0.0001062,2]
[400772886,1767824153148,797.0,0.00010989,2]
[400772887,1767824153429,797.0,0.00011359,2]
[400772888,1767824153602,797.0,0.00011728,2]
[400772889,1767824153773,110.62007198,0.00012097,2]
[400772890,1767824153799,686.37992802,0.00012097,2]
[400772891,1767824154433,797.0,0.00012466,2]
[400772892,1767824155190,797.0,0.00012835,2]
[400772893,1767824155409,-500.0,0.00013204,2]
[400772894,1767824157469,-297.0,0.00013204,2]
[400772895,1767824157501,-797.0,0.00013573,2]
[400772896,1767824157537,-797.0,0.00013942,2]
[400772897,1767824157569,-364.8595931,0.00014096,2]
[400772898,1767824160289,-364.85959309,0.00014097,2]
[400772899,1767824162101,-199.97442301,0.00014197,2]
[400772900,1767824166008,-364.85959309,0.00014097,2]
[400772901,1767824168669,-284.21771957,0.00014197,2]
[400772902,1767824173825,-623.9276809,0.00014197,2]
[400772903,1767824174390,-534.14261499,0.00014197,2]
[400772904,1767824179064,388.81615301,0.00014097,2]
[400772905,1767824195207,9611.19384699,0.00014097,2]
[400772906,1767824195233,7648.01745874,0.00014097,2]
[400772907,1767824199726,636.52350523,0.00014097,2]
[400772908,1767824216559,-2500.0,0.00014097,2]
[400772909,1767824273898,209.35465995,0.00014097,2]
[400772911,1767824355797,989.9147289,0.00014097,2]
[400772912,1767824366665,2500.0,0.00014097,2]
[400772913,1767824398755,1154.93,0.00013959,2]
[400772914,1767824415913,-3299.1068,0.00014097,2]
[400772915,1767824416014,-3401.7964,0.00014097,2]
[400772916,1767824422986,-300.02557716,0.00014097,2]
[400772917,1767824425117,-203.37762642,0.00014097,2]
[400772918,1767824427463,-243.55090306,0.00014097,2]
[400772919,1767824430846,-481.4047759,0.00014097,2]
[400772920,1767824430947,-263.06604718,0.00014097,2]
[400772921,1767824431025,-198.09159596,0.00014097,2]
[400772922,1767824431200,-9603.82680808,0.00014097,2]
[400772923,1767824434960,203.203274,0.00014097,2]
[400772924,1767824445205,150.0,0.00013784,2]
[400772925,1767824478900,556.95806712,0.00014097,2]
[400772926,1767824492275,173.34,0.0001078,2]
[400772927,1767824494901,198.1434,0.00014097,2]
[400772928,1767824512640,654.760281,0.00014093,2]
[400772929,1767824522828,2409.01573202,0.00014097,2]
[400772930,1767824553865,6439.02,0.00013309,2]
[400772931,1767824558442,3560.99,0.00014097,2]
[400772932,1767824558473,3142.9539,0.00014097,2]
[400772933,1767824576158,10000.01,0.00014097,2]
[400772934,1767824576186,6652.04986832,0.00014097,2]
[400772935,1767824608835,150.0,0.00013309,2]
[400772936,1767824631980,4108.7785,0.00014097,2]
[400772937,1767824650564,621.98,0.00013295,2]
[400772938,1767824655432,1100.0,0.00013781,2]
[400772943,1767824707866,1038.49,0.00013341,2]
[400772944,1767824707961,350.392,0.00014097,2]
[400772947,1767824722215,5702.97,0.00013407,2]
[400772948,1767824739506,-254.0,0.00014114,2]
[400772949,1767824739538,-300.0,0.00014114,2]
[400772950,1767824739570,-300.0,0.00014114,2]
[400772951,1767824739601,-1200.0,0.00014114,2]
[400772952,1767824739633,-195.0,0.00014115,2]
[400772953,1767824739664,-500.0,0.00014115,2]
[400772954,1767824739695,-778.0,0.00014115,2]
[400772955,1767824739725,-500.0,0.00014115,2]
[400772956,1767824739756,-150.0,0.00014115,2]
[400772957,1767824739791,-459.0,0.00014115,2]
[400772958,1767824739821,-228.01,0.00014115,2]
[400772959,1767824746229,-271.99,0.00014115,2]
[400772960,1767824746260,-599.0,0.00014115,2]
[400772961,1767824746292,-195.0,0.00014127,2]
[400772962,1767824746324,-250.0,0.0001414,2]
[400772963,1767824746356,-2892.0532,0.00014164,2]
[400772964,1767824748652,-1583.9236,0.00014164,2]
[400772965,1767824748686,-250.0,0.00014165,2]
[400772966,1767824748717,-500.0,0.0001417,2]
[400772967,1767824748750,-778.0,0.0001417,2]
[400772968,1767824748782,-500.0,0.0001417,2]
[400772969,1767824748817,-459.0,0.0001417,2]
[400772970,1767824748851,-500.0,0.0001417,2]
[400772971,1767824748886,-259.1628,0.0001417,2]
[400772972,1767824756150,1000.0,0.00013828,2]
[400772974,1767824809768,500.0,0.00013344,2]
[400772981,1767824889847,332.2,0.00013344,2]
[400772986,1767824907919,684.6,0.00013329,2]
[400772988,1767824910159,293.316777,0.00014026,2]
[400772991,1767824932216,-2172.62900054,0.00013997,2]
[400772992,1767824935301,-2008.63000021,0.00013997,2]
[400772993,1767824935433,-5982.74999958,0.00013997,2]
[400773139,1767824951879,-10000.01,0.00014095,2]
[400773215,1767824962081,10000.01,0.00013997,2]
[400773220,1767824962466,-4986.84388156,0.00013997,2]
[400773320,1767825031753,-338.7228,0.00014014,2]
[400773323,1767825031763,-266.0,0.00014024,2]
[400773325,1767825031773,-1937.351718,0.00014024,2]
[400773327,1767825031783,-300.0,0.00014094,2]
[400773328,1767825031792,-1200.0,0.00014094,2]
[400773329,1767825031802,-150.0,0.00014094,2]
[400773330,1767825031811,-300.0,0.00014094,2]
[400773331,1767825031821,-15911.77476601,0.00014095,2]
[400773332,1767825031832,-9841.3503795,0.00014095,2]
[400773333,1767825031923,-454.69711136,0.00014095,2]
[400773334,1767825031934,-2450.9437083,0.00014095,2]
[400773335,1767825032018,-3668.11136025,0.00014095,2]
[400773336,1767825032029,-5722.72505615,0.00014095,2]
[400773337,1767825032040,-536.47581954,0.00014095,2]
[400773338,1767825032051,-351996.12046359,0.00014095,2]
[400773339,1767825032062,-356830.521,0.00014095,2]
[400773340,1767825032073,-30813.81503053,0.00014095,2]
[400773343,1767825032105,-969.61981694,0.00014095,2]
[400773345,1767825032117,-10559.94791089,0.00014095,2]
[400773347,1767825032129,-17692.41594308,0.00014095,2]
[400773364,1767825032276,-399.30784984,0.00014095,2]
[400773365,1767825032287,-3293.30861604,0.00014095,2]
[400773424,1767825038831,-178858.85516798,0.00014095,2]
[400773426,1767825038840,-10446.1846,0.00014097,2]
[400773427,1767825038849,-150.0,0.00014115,2]
[400773428,1767825038859,-150.0,0.00014115,2]
[400773429,1767825038871,-500.0,0.00014115,2]
[400773430,1767825038881,-150.0,0.00014115,2]
[400773431,1767825038890,-150.0,0.00014115,2]
[400773432,1767825038900,-150.0,0.00014115,2]
[400773433,1767825038911,-178.03708143,0.00014115,2]
[400773434,1767825038920,-150.0,0.00014115,2]
[400773435,1767825038930,-500.0,0.00014115,2]
[400773436,1767825038941,-150.0,0.00014115,2]
[400773464,1767825039289,-150.0,0.00014115,2]
[400773466,1767825039307,-150.0,0.00014115,2]
[400773469,1767825039317,-421.0,0.00014115,2]
[400773471,1767825039327,-500.0,0.00014115,2]
[400773473,1767825039336,-500.0,0.00014115,2]
[400773475,1767825039345,-500.0,0.00014115,2]
[400773476,1767825039355,-713.0,0.00014115,2]
[400773478,1767825039364,-538.0,0.00014115,2]
[400773481,1767825039374,-384.10059426,0.00014133,2]
[400773483,1767825039385,-150.0,0.0001417,2]
[400773485,1767825039395,-150.0,0.0001417,2]
[400773487,1767825039404,-587.25732595,0.0001417,2]
[400773489,1767825039413,-150.0,0.0001417,2]
[400773491,1767825039423,-271.23482998,0.0001417,2]
[400773492,1767825039432,-210.07522356,0.0001417,2]
[400773494,1767825039442,-500.0,0.0001417,2]
[400773496,1767825039452,-150.0,0.0001417,2]
[400773498,1767825039461,-500.0,0.0001417,2]
[400773500,1767825039471,-421.0,0.0001417,2]
[400773503,1767825039480,-500.0,0.0001417,2]
[400773505,1767825039490,-500.0,0.0001417,2]
[400773506,1767825039499,-713.0,0.0001417,2]
[400773508,1767825039509,-538.0,0.0001417,2]
[400773510,1767825039518,-1511.05,0.00014188,2]
[400773512,1767825039527,-500.0,0.00014188,2]
[400773514,1767825039536,-500.0,0.00014188,2]
[400773516,1767825039546,-288.27990329,0.00014188,2]
[400773518,1767825039555,-200.0,0.00014188,2]
[400773520,1767825039565,-500.0,0.00014188,2]
[400773522,1767825039575,-151.0,0.00014188,2]
[400773524,1767825039584,-151.0,0.00014188,2]
[400773526,1767825039595,-151.0,0.00014188,2]
[400773528,1767825039604,-151.0,0.00014188,2]
[400773530,1767825039614,-151.0,0.00014188,2]
[400773532,1767825039623,-151.0,0.00014188,2]
[400773534,1767825039633,-151.0,0.00014188,2]
[400773536,1767825039643,-151.0,0.00014188,2]
[400773538,1767825039652,-151.0,0.00014188,2]
[400773540,1767825039662,-151.0,0.00014188,2]
[400773542,1767825039671,-151.0,0.00014188,2]
[400773544,1767825039681,-163.21927954,0.00014188,2]
[400773546,1767825039690,-163.21927954,0.00014188,2]
[400773548,1767825039700,-163.21927954,0.00014188,2]
[400773550,1767825039710,-231.00016381,0.00014193,2]
[400773552,1767825039719,-194.26197488,0.00014193,2]
[400773554,1767825039730,-500.0,0.00014193,2]
[400773556,1767825039739,-500.0,0.00014193,2]
[400773558,1767825039748,-500.0,0.00014193,2]
[400773560,1767825039758,-500.0,0.00014193,2]
[400773562,1767825039768,-500.0,0.00014193,2]
[400773564,1767825039778,-500.0,0.00014193,2]
[400773566,1767825039788,-500.0,0.00014193,2]
[400773568,1767825039797,-500.0,0.00014193,2]
[400773570,1767825039807,-500.0,0.00014193,2]
[400773572,1767825039816,-500.0,0.00014193,2]
[400773574,1767825039826,-500.0,0.00014193,2]
[400773576,1767825039835,-500.0,0.00014193,2]
[400773578,1767825039844,-500.0,0.00014193,2]
[400773580,1767825039854,-500.0,0.00014193,2]
[400773582,1767825039865,-500.0,0.00014193,2]
[400773584,1767825039879,-500.0,0.00014193,2]
[400773586,1767825039888,-500.0,0.00014193,2]
[400773588,1767825039898,-500.0,0.00014193,2]
[400773590,1767825039908,-500.0,0.00014193,2]
[400773592,1767825039918,-500.0,0.00014193,2]
[400773594,1767825039927,-500.0,0.00014193,2]
[400773596,1767825039939,-500.0,0.00014193,2]
[400773598,1767825039949,-154.05661543,0.00014193,2]
[400773600,1767825039959,-500.0,0.00014193,2]
[400773602,1767825039968,-500.0,0.00014193,2]
[400773604,1767825039977,-500.0,0.00014193,2]
[400773606,1767825039986,-500.0,0.00014193,2]
[400773608,1767825039996,-500.0,0.00014193,2]
[400773609,1767825040006,-200.0,0.00014193,2]
[400773611,1767825040016,-500.0,0.00014193,2]
[400773613,1767825040025,-500.0,0.00014193,2]
[400773615,1767825040034,-1000.0,0.00014194,2]
[400773617,1767825040044,-9581.1,0.00014195,2]
[400773619,1767825040053,-1465.39,0.00014195,2]
[400773621,1767825040062,-4999.99,0.00014195,2]
[400773623,1767825040071,-150.99,0.00014195,2]
[400773625,1767825040081,-3687.07,0.00014195,2]
[400773627,1767825040090,-42324.09,0.00014195,2]
[400773629,1767825040099,-9999.99,0.00014195,2]
[400773631,1767825040108,-150.99,0.00014195,2]
[400773633,1767825040118,-1000.0,0.00014196,2]
[400773635,1767825040127,-287.82479827,0.00014196,2]
[400773637,1767825040136,-190.62851662,0.00014196,2]
[400773639,1767825040145,-500.0,0.00014196,2]
[400773641,1767825040154,-627.58916748,0.00014196,2]
[400773643,1767825040164,-500.0,0.00014196,2]
[400773645,1767825040173,-388.00696322,0.00014196,2]
[400773647,1767825040182,-500.0,0.00014196,2]
[400773649,1767825040191,-500.0,0.00014196,2]
[400773651,1767825040200,-500.0,0.00014196,2]
[400773653,1767825040210,-450.63605817,0.00014196,2]
[400773655,1767825040219,-500.0,0.00014196,2]
[400773657,1767825040229,-500.0,0.00014196,2]
[400773659,1767825040238,-500.0,0.00014196,2]
[400773661,1767825040247,-500.0,0.00014196,2]
[400773663,1767825040257,-500.0,0.00014196,2]
[400773665,1767825040267,-500.0,0.00014196,2]
[400773667,1767825040277,-420.4969783,0.00014196,2]
[400773669,1767825040286,-189.733,0.00014196,2]
[400773671,1767825040295,-1876.607,0.00014196,2]
[400773673,1767825040306,-500.0,0.00014196,2]
[400773675,1767825040315,-500.0,0.00014196,2]
[400773677,1767825040325,-500.0,0.00014196,2]
[400773679,1767825040334,-524.88501728,0.00014196,2]
[400773681,1767825040344,-500.0,0.00014196,2]
[400773683,1767825040353,-500.0,0.00014196,2]
[400773685,1767825040362,-529.68631152,0.00014196,2]
[400773687,1767825040372,-500.0,0.00014196,2]
[400773689,1767825040381,-513.96214798,0.00014196,2]
[400773691,1767825040390,-500.0,0.00014196,2]
[400773693,1767825040400,-500.0,0.00014196,2]
[400773695,1767825040410,-500.0,0.00014196,2]
[400773697,1767825040420,-509.41321763,0.00014196,2]
[400773699,1767825040429,-500.0,0.00014196,2]
[400773701,1767825040438,-500.0,0.00014196,2]
[400773703,1767825040448,-500.0,0.00014196,2]
[400773705,1767825040458,-500.0,0.00014196,2]
[400773706,1767825040467,-500.0,0.00014196,2]
[400773708,1767825040476,-534.92861577,0.00014196,2]
[400773711,1767825040486,-500.0,0.00014196,2]
[400773712,1767825040495,-500.0,0.00014196,2]
[400773715,1767825040505,-500.0,0.00014196,2]
[400773717,1767825040515,-500.0,0.00014196,2]
[400773719,1767825040524,-500.0,0.00014196,2]
[400773720,1767825040534,-500.0,0.00014196,2]
[400773723,1767825040544,-500.0,0.00014196,2]
[400773724,1767825040553,-500.0,0.00014196,2]
[400773726,1767825040563,-500.0,0.00014196,2]
[400773728,1767825040573,-500.0,0.00014196,2]
[400773730,1767825040584,-500.0,0.00014196,2]
[400773732,1767825040593,-8963.63816153,0.00014197,2]
[400773734,1767825040602,-2268.8436,0.00014197,2]
[400773737,1767825040612,-1000.0,0.00014197,2]
[400773739,1767825040622,-200.0,0.00014197,2]
[400773741,1767825040632,-200.0,0.00014197,2]
[400773743,1767825040641,-500.0,0.00014205,2]
[400773744,1767825040651,-150.0,0.00014225,2]
[400773746,1767825040660,-150.0,0.00014225,2]
[400773749,1767825040671,-204.51452503,0.00014225,2]
[400773751,1767825040681,-500.0,0.00014225,2]
[400773753,1767825040691,-250.0,0.00014225,2]
[400773754,1767825040700,-421.0,0.00014225,2]
[400773757,1767825040710,-519.25199485,0.00014225,2]
[400773758,1767825040719,-500.0,0.00014225,2]
[400773761,1767825040729,-500.0,0.00014225,2]
[400773762,1767825040739,-713.0,0.00014225,2]
[400773765,1767825040749,-538.0,0.00014225,2]
[400773767,1767825040759,-150.0,0.00014279,2]
[400773769,1767825040768,-150.0,0.00014279,2]
[400773771,1767825040778,-500.0,0.00014279,2]
[400773773,1767825040787,-421.0,0.00014279,2]
[400773775,1767825040796,-500.0,0.00014279,2]
[400773777,1767825040805,-500.0,0.00014279,2]
[400773778,1767825040814,-713.0,0.00014279,2]
[400773780,1767825040824,-538.0,0.00014279,2]
[400773782,1767825040834,-183.51,0.00014289,2]
[400773784,1767825040843,-300.32189939,0.00014296,2]
[400773786,1767825040852,-500.0,0.00014296,2]
[400773788,1767825040861,-500.0,0.00014296,2]
[400773790,1767825040874,-508.99338834,0.00014296,2]
[400773792,1767825040883,-500.0,0.00014296,2]
[400773794,1767825040892,-500.0,0.00014296,2]
[400773796,1767825040901,-283.51547018,0.00014296,2]
[400773798,1767825040911,-500.0,0.00014296,2]
[400773800,1767825040920,-500.0,0.00014296,2]
[400773802,1767825040930,-500.0,0.00014296,2]
[400773804,1767825040940,-500.0,0.00014296,2]
[400773806,1767825040950,-500.0,0.00014296,2]
[400773808,1767825040959,-500.0,0.00014296,2]
[400773810,1767825040968,-500.0,0.00014296,2]
[400773812,1767825040978,-500.0,0.00014296,2]
[400773814,1767825040987,-500.0,0.00014296,2]
[400773816,1767825040995,-500.0,0.00014296,2]
[400773818,1767825041005,-500.0,0.00014296,2]
[400773819,1767825041014,-500.0,0.00014296,2]
[400773822,1767825041024,-797.0,0.00014311,2]
[400773824,1767825041034,-200.0,0.00014334,2]
[400773825,1767825041044,-249.62704522,0.00014334,2]
[400773828,1767825041053,-191.58151617,0.00014334,2]
[400773830,1767825041063,-421.0,0.00014334,2]
[400773832,1767825041072,-500.0,0.00014334,2]
[400773834,1767825041082,-713.0,0.00014334,2]
[400773836,1767825041091,-538.0,0.00014334,2]
[400773837,1767825041101,-200.0,0.00014339,2]
[400773840,1767825041111,-200.0,0.00014339,2]
[400773842,1767825041120,-421.0,0.00014389,2]
[400773844,1767825041130,-500.0,0.00014389,2]
[400773845,1767825041139,-713.0,0.00014389,2]
[400773847,1767825041148,-538.0,0.00014389,2]
[400773850,1767825041158,-10164.00900033,0.00014431,2]
[400773851,1767825041167,-14986.85388147,0.00014431,2]
[400773853,1767825041176,-421.0,0.00014444,2]
[400773855,1767825041186,-500.0,0.00014444,2]
[400773857,1767825041195,-713.0,0.00014444,2]
[400773859,1767825041204,-538.0,0.00014444,2]
[400773861,1767825041213,-1511.05,0.00014462,2]
[400773863,1767825041223,-500.0,0.00014478,2]
[400773865,1767825041232,-500.0,0.00014479,2]
[400773867,1767825041242,-200.0,0.00014482,2]
[400773869,1767825041252,-200.0,0.00014482,2]
[400773871,1767825041261,-1455.64956121,0.00014489,2]
[400773873,1767825041270,-421.0,0.00014499,2]
[400773875,1767825041280,-500.0,0.00014499,2]
[400773877,1767825041289,-713.0,0.00014499,2]
[400773879,1767825041298,-538.0,0.00014499,2]
[400773881,1767825041307,-1100.0,0.00014506,2]
[400773883,1767825041317,-421.0,0.00014553,2]
[400773885,1767825041326,-352.79963653,0.00014553,2]
[400773887,1767825041335,-713.0,0.00014553,2]
[400773889,1767825041345,-538.0,0.00014553,2]
[400773891,1767825041355,-421.0,0.00014608,2]
[400773893,1767825041364,-713.0,0.00014608,2]
[400773895,1767825041373,-538.0,0.00014608,2]
[400773897,1767825041384,-200.0,0.00014627,2]
[400773899,1767825041393,-200.0,0.00014627,2]
[400773901,1767825041402,-421.0,0.00014663,2]
[400773903,1767825041412,-713.0,0.00014663,2]
[400773905,1767825041421,-538.0,0.00014663,2]
[400773907,1767825041431,-421.0,0.00014718,2]
[400773909,1767825041441,-713.0,0.00014718,2]
[400773911,1767825041451,-538.0,0.00014718,2]
[400773913,1767825041460,-989.9147289,0.00014731,2]
[400773915,1767825041469,-1511.05,0.00014736,2]
[400773917,1767825041478,-200.0,0.00014736,2]
[400773919,1767825041488,-500.0,0.00014736,2]
[400773921,1767825041498,-500.0,0.00014753,2]
[400773923,1767825041508,-421.0,0.00014773,2]
[400773925,1767825041518,-713.0,0.00014773,2]
[400773927,1767825041527,-538.0,0.00014773,2]
[400773929,1767825041536,-200.0,0.00014773,2]
[400773931,1767825041546,-200.0,0.00014773,2]
[400773933,1767825041556,-166.66,0.00014785,2]
[400773936,1767825041566,-2647.6,0.00014805,2]
[400773938,1767825041575,-421.0,0.00014827,2]
[400773940,1767825041586,-713.0,0.00014827,2]
[400773941,1767825041595,-538.0,0.00014827,2]